bitfinex-derivatives/quotes_BTCF0:USTF0_20230401
["timestamp","ask_amount","ask_price","bid_price","bid_amount"]
[1680357555192,0.12422673,28430.0,28424.0,0.85216958]
[1680357555393,0.12422673,28430.0,28429.0,0.0704]
[1680357556293,0.12522673,28430.0,28429.0,0.0704]
[1680357556893,0.12452673,28430.0,28427.0,0.3711]
[1680357557097,0.07,28428.0,28427.0,0.3711]
[1680357558487,0.07,28428.0,28427.0,0.3771]
[1680357563006,0.07,28428.0,28427.0,0.0764]
[1680357563305,0.07,28428.0,28427.0,0.3771]
[1680357567001,0.0704,28429.0,28427.0,0.3769]
[1680357567309,0.05,28428.0,28427.0,0.3769]
[1680357568009,0.0704,28429.0,28427.0,0.3709]
[1680357568511,0.0704,28429.0,28427.0,0.3769]
[1680357569007,0.0704,28429.0,28427.0,0.3709]
[1680357570203,0.05,28428.0,28427.0,0.3709]
[1680357571210,0.05,28428.0,28427.0,0.3137]
[1680357571211,0.1204,28428.0,28427.0,0.3137]
[1680357579120,0.1204,28428.0,28427.0,0.013]
[1680357579322,0.1204,28428.0,28427.0,0.3137]
[1680357581910,0.1908,28428.0,28427.0,0.3137]
[1680357584123,0.1204,28428.0,28427.0,0.3137]
[1680357586527,0.1204,28428.0,28427.0,0.013]
[1680357592030,0.0704,28428.0,28427.0,0.013]
[1680357592226,0.0704,28428.0,28427.0,0.07624361]
[1680357592426,0.0704,28428.0,28427.0,0.013]
[1680357592623,0.0704,28428.0,28427.0,0.07624361]
[1680357595950,0.0704,28428.0,28427.0,0.37694361]
[1680357602153,0.0704,28428.0,28427.0,0.3137]
[1680357607157,0.1204,28428.0,28427.0,0.3137]
[1680357615864,0.0704,28428.0,28427.0,0.3137]
[1680357618568,0.0704,28428.0,28427.0,0.013]
[1680357620467,0.0704,28428.0,28427.0,0.0828]
[1680357620774,0.0704,28428.0,28427.0,0.14604361]
[1680357636879,0.0704,28428.0,28427.0,0.07624361]
[1680357638183,0.0704,28428.0,28427.0,0.37694361]
[1680357643986,0.0704,28428.0,28427.0,0.3137]
[1680357644189,0.0704,28428.0,28427.0,0.37694438]
[1680357646979,0.0704,28428.0,28427.0,0.44734438]
[1680357651898,0.0704,28428.0,28427.0,0.74804438]
[1680357652098,0.05185594,28431.0,28427.0,0.83896958]
[1680357652400,0.0702,28433.0,28430.0,0.43421635]
[1680357652593,0.0702,28433.0,28432.0,0.0698]
[1680357653002,0.12330655,28433.0,28432.0,0.0698]
[1680357654288,0.12430655,28433.0,28432.0,0.0718]
[1680357656899,0.12410655,28433.0,28432.0,0.002]
[1680357662201,0.05410655,28433.0,28432.0,0.002]
[1680357662394,0.12450655,28433.0,28432.0,0.002]
[1680357663503,0.12450655,28433.0,28432.0,0.001]
[1680357663898,0.12450655,28433.0,28432.0,0.051]
[1680357664103,0.12450655,28433.0,28432.0,0.001]
[1680357670307,0.49550655,28433.0,28432.0,0.001]
[1680357670509,0.49550655,28433.0,28428.0,0.0698]
[1680357670715,0.0704,28429.0,28428.0,0.0698]
[1680357671309,0.0704,28429.0,28428.0,0.0702]
[1680357672808,0.0704,28429.0,28428.0,0.0712]
[1680357673209,0.0704,28429.0,28428.0,0.0702]
[1680357673412,0.0704,28429.0,28428.0,0.0832]
[1680357676910,0.0704,28429.0,28428.0,0.013]
[1680357678011,0.1204,28429.0,28428.0,0.013]
[1680357691127,0.0704,28429.0,28428.0,0.013]
[1680357697229,0.0704,28429.0,28428.0,0.07621635]
[1680357699137,0.0704,28429.0,28428.0,0.013]
[1680357703630,0.0704,28429.0,28428.0,0.07621635]
[1680357706232,0.0704,28430.0,28428.0,0.14641635]
[1680357707443,0.0704,28430.0,28428.0,0.13941635]
[1680357709143,0.0704,28430.0,28428.0,0.44011635]
[1680357709943,0.0704,28430.0,28428.0,0.13941635]
[1680357710142,0.0704,28430.0,28428.0,0.44011635]
[1680357713451,0.0704,28430.0,28429.0,0.06321635]
[1680357713646,0.0704,28430.0,28429.0,0.11321635]
[1680357713947,0.0704,28430.0,28428.0,0.44011635]
[1680357714449,0.0704,28430.0,28429.0,0.006]
[1680357714846,0.0704,28430.0,28428.0,0.43411635]
[1680357715147,0.0704,28430.0,28428.0,0.44011635]
[1680357715448,0.0704,28430.0,28429.0,0.006]
[1680357715847,0.0704,28430.0,28429.0,0.06321635]
[1680357716345,0.0704,28430.0,28429.0,0.05]
[1680357716946,0.0704,28432.0,28429.0,0.0699]
[1680357717144,0.05,28431.0,28430.0,0.06319422]
[1680357717448,0.05,28431.0,28430.0,0.13309422]
[1680357717649,0.0704,28432.0,28430.0,0.13309422]
[1680357718851,0.1204,28431.0,28429.0,0.0630948]
[1680357719052,0.0704,28430.0,28429.0,0.0630948]
[1680357719349,0.1204,28430.0,28429.0,0.0630948]
[1680357720243,0.1204,28430.0,28429.0,0.0690948]
[1680357727559,0.0702,28431.0,28429.0,0.1389948]
[1680357727756,0.1202,28431.0,28430.0,0.0704]
[1680357727956,0.0702,28431.0,28430.0,0.1204]
[1680357728262,0.0702,28431.0,28430.0,0.0704]
[1680357736963,0.0697,28431.0,28429.0,0.4341948]
[1680357737164,0.0704,28430.0,28429.0,0.4341948]
[1680357738568,0.0704,28430.0,28429.0,0.1334948]
[1680357738766,0.0704,28430.0,28429.0,0.4341948]
[1680357738968,0.0704,28430.0,28429.0,0.4401948]
[1680357739155,0.0704,28430.0,28429.0,0.3771]
[1680357741271,0.0704,28430.0,28429.0,0.0764]
[1680357746568,0.1408,28430.0,28429.0,0.006]
[1680357748670,0.4415,28430.0,28429.0,0.006]
[1680357751373,0.3711,28430.0,28429.0,0.006]
[1680357751570,0.0704,28430.0,28429.0,0.006]
[1680357751773,0.3711,28430.0,28429.0,0.006]
[1680357754782,0.0704,28430.0,28429.0,0.006]
[1680357754979,0.3711,28430.0,28429.0,0.006]
[1680357759179,0.0704,28430.0,28429.0,0.006]
[1680357771986,0.0704,28430.0,28429.0,0.00591405]
[1680357781289,0.05,28429.0,28426.0,0.15468847]
[1680357781484,0.0704,28427.0,28426.0,0.15468847]
[1680357781892,0.0704,28427.0,28426.0,0.45538847]
[1680357782898,0.0704,28427.0,28426.0,0.3711]
[1680357783396,0.0712,28427.0,28426.0,0.025]
[1680357791204,0.3719,28427.0,28426.0,0.025]
[1680357791604,0.0712,28427.0,28426.0,0.025]
[1680357791805,0.1212,28427.0,28426.0,0.025]
[1680357806928,0.1915,28427.0,28426.0,0.025]
[1680357816439,0.1415,28427.0,28426.0,0.025]
[1680357816842,0.1915,28427.0,28426.0,0.025]
[1680357827048,0.1213,28427.0,28426.0,0.025]
[1680357835855,0.1213,28427.0,28426.0,0.02493852]
[1680357837956,0.0713,28427.0,28426.0,0.02493852]
[1680357862180,0.0713,28427.0,28426.0,0.32563852]
[1680357876987,0.0714,28427.0,28426.0,0.32563852]
[1680357884189,0.0714,28427.0,28426.0,0.32549992]
[1680357886985,0.001,28427.0,28426.0,0.39529992]
[1680357887788,0.001,28427.0,28426.0,0.09459992]
[1680357889294,0.001,28427.0,28426.0,0.17888839]
[1680357890188,0.001,28427.0,28426.0,0.47958839]
[1680357893794,0.001,28427.0,28426.0,0.39529992]
[1680357894396,0.001,28427.0,28426.0,0.47948839]
[1680357894596,0.0704,28430.0,28427.0,0.05]
[1680357894891,0.0704,28430.0,28429.0,0.3706]
[1680357896702,0.0704,28430.0,28429.0,0.3766]
[1680357896892,0.0704,28432.0,28429.0,0.3765]
[1680357897088,0.0704,28432.0,28431.0,0.0704]
[1680357898703,0.0702,28433.0,28431.0,0.0699]
[1680357898896,0.057,28432.0,28431.0,0.0699]
[1680357899096,0.05,28432.0,28431.0,0.0699]
[1680357899299,0.057,28432.0,28431.0,0.0709]
[1680357899990,0.007,28432.0,28431.0,0.0709]
[1680357906902,0.0774,28432.0,28431.0,0.001]
[1680357916113,0.0767,28432.0,28431.0,0.001]
[1680357926928,0.1471,28432.0,28431.0,0.001]
[1680357930526,0.1471,28432.0,28425.0,0.38488332]
[1680357930527,0.2876,28432.0,28425.0,0.38488332]
[1680357930729,0.0704,28426.0,28425.0,0.3007]
[1680357932034,0.0714,28426.0,28425.0,0.3287]
[1680357936944,0.071,28426.0,28425.0,0.028]
[1680357938638,0.121,28426.0,28425.0,0.028]
[1680357945040,0.071,28426.0,28425.0,0.028]
[1680357945437,0.001,28426.0,28425.0,0.0981]
[1680357948245,0.001,28426.0,28425.0,0.3988]
[1680357951246,0.001,28426.0,28425.0,0.0981]
[1680357951450,0.001,28426.0,28425.0,0.3988]
[1680357952347,0.001,28426.0,28425.0,0.0981]
[1680357952556,0.001,28426.0,28425.0,0.3988]
[1680357954754,0.001,28426.0,28425.0,0.0981]
[1680357954956,0.001,28426.0,28425.0,0.3988]
[1680357955657,0.001,28426.0,28425.0,0.0981]
[1680357955956,0.001,28426.0,28425.0,0.3988]
[1680357956756,0.001,28426.0,28425.0,0.0981]
[1680357957157,0.001,28426.0,28425.0,0.3988]
[1680357957752,0.001,28426.0,28425.0,0.0981]
[1680357958055,0.001,28426.0,28425.0,0.3988]
[1680357962755,0.001,28426.0,28425.0,0.0981]
[1680357962957,0.001,28426.0,28425.0,0.3988]
[1680357967067,0.001,28426.0,28425.0,0.3986]
[1680357970565,0.1414,28426.0,28425.0,0.028]
[1680357970768,0.1914,28426.0,28425.0,0.028]
[1680357976971,0.4921,28426.0,28425.0,0.028]
[1680357979277,0.54552289,28426.0,28425.0,0.028]
[1680357985182,0.54552289,28426.0,28425.0,0.02784798]
[1680357985484,0.49552289,28426.0,28425.0,0.02784798]
[1680357985676,0.42552289,28426.0,28425.0,0.09824798]
[1680357987083,0.12442289,28426.0,28425.0,0.09824798]
[1680357991787,0.071,28426.0,28425.0,0.09824798]
[1680357996891,0.0714,28426.0,28425.0,0.02784798]
[1680358006696,0.0704,28426.0,28424.0,0.33555518]
[1680358006898,0.001,28426.0,28425.0,0.012]
[1680358007096,0.0697,28426.0,28424.0,0.33555518]
[1680358007297,0.001,28426.0,28425.0,0.019]
[1680358007497,0.0714,28426.0,28425.0,0.069]
[1680358007701,0.0714,28426.0,28425.0,0.019]
[1680358023117,0.0704,28426.0,28424.0,0.33555518]
[1680358023316,0.001,28426.0,28425.0,0.013]
[1680358023615,0.0714,28426.0,28425.0,0.013]
[1680358030019,0.2821,28426.0,28425.0,0.013]
[1680358032722,0.33377196,28426.0,28425.0,0.013]
[1680358034216,0.33377196,28426.0,28425.0,0.01276019]
[1680358036129,0.63447196,28426.0,28425.0,0.01276019]
[1680358039627,0.63447196,28426.0,28420.0,0.05192465]
[1680358039930,0.63447196,28426.0,28417.0,0.10512482]
[1680358039931,0.1408,28421.0,28417.0,0.10512482]
[1680358040130,0.3007,28422.0,28417.0,0.10512482]
[1680358040131,0.0704,28418.0,28417.0,0.10512482]
[1680358040327,0.0704,28418.0,28416.0,0.0697]
[1680358040328,0.0704,28418.0,28416.0,0.17482482]
[1680358040522,0.0704,28417.0,28416.0,0.17482482]
[1680358041435,0.0734,28417.0,28416.0,0.0707]
[1680358047030,0.0734,28417.0,28416.0,0.001]
[1680358047937,0.0724,28417.0,28416.0,0.012]
[1680358055733,0.1426,28417.0,28416.0,0.012]
[1680358057047,0.0722,28417.0,28416.0,0.012]
[1680358058845,0.2834,28417.0,28416.0,0.012]
[1680358059847,0.5841,28417.0,28416.0,0.012]
[1680358063043,0.63663322,28417.0,28416.0,0.012]
[1680358067861,0.77753322,28417.0,28412.0,0.3007]
[1680358068065,0.0702,28413.0,28409.0,0.3705]
[1680358068261,0.0704,28410.0,28409.0,0.3705]
[1680358069463,0.0734,28410.0,28409.0,0.3705]
[1680358076868,0.0734,28410.0,28409.0,0.3007]
[1680358077172,0.003,28410.0,28409.0,0.3711]
[1680358085071,0.003,28410.0,28409.0,0.47622482]
[1680358086973,0.003,28410.0,28409.0,0.3711]
[1680358087168,0.003,28410.0,28409.0,0.47622482]
[1680358088180,0.003,28410.0,28409.0,0.3709]
[1680358089980,0.003,28410.0,28409.0,0.47602482]
[1680358090879,0.003,28410.0,28409.0,0.6716]
[1680358091383,0.003,28410.0,28409.0,0.77672482]
[1680358092980,0.003,28410.0,28409.0,0.47602482]
[1680358095981,0.003,28410.0,28409.0,0.77672482]
[1680358096575,0.003,28410.0,28409.0,0.17532482]
[1680358096881,0.003,28410.0,28409.0,0.47592482]
[1680358111194,0.003,28410.0,28409.0,0.3708]
[1680358111397,0.003,28410.0,28409.0,0.47618562]
[1680358111792,0.003,28410.0,28409.0,0.3708]
[1680358111990,0.003,28410.0,28409.0,0.47618566]
[1680358113096,0.003,28410.0,28409.0,0.3708]
[1680358116900,0.003,28410.0,28409.0,0.4762072]
[1680358117102,0.003,28410.0,28409.0,0.3708]
[1680358117296,0.003,28410.0,28409.0,0.37073099]
[1680358124011,0.0704,28415.0,28410.0,0.05]
[1680358124211,0.0704,28415.0,28413.0,0.3711]
[1680358124509,0.05,28414.0,28413.0,0.3711]
[1680358124917,0.0704,28415.0,28413.0,0.3711]
[1680358125715,0.0724,28415.0,28413.0,0.3711]
[1680358126115,0.0724,28415.0,28413.0,0.3741]
[1680358126817,0.0724,28415.0,28414.0,0.05]
[1680358127020,0.002,28415.0,28414.0,0.1204]
[1680358127212,0.0704,28419.0,28415.0,0.05]
[1680358127412,0.0704,28419.0,28418.0,0.3704]
[1680358129410,0.0714,28419.0,28418.0,0.3754]
[1680358129814,0.0704,28419.0,28418.0,0.3704]
[1680358130015,0.0714,28419.0,28418.0,0.3754]
[1680358135030,0.0714,28419.0,28418.0,0.0747]
[1680358135230,0.0714,28419.0,28418.0,0.005]
[1680358135231,0.071,28419.0,28418.0,0.005]
[1680358135931,0.121,28419.0,28418.0,0.005]
[1680358136819,0.4217,28419.0,28418.0,0.005]
[1680358137022,0.4921,28419.0,28418.0,0.005]
[1680358139726,0.05,28418.0,28414.0,0.0701]
[1680358139930,0.0704,28415.0,28414.0,0.0701]
[1680358141331,0.0734,28415.0,28414.0,0.0701]
[1680358146937,0.0734,28415.0,28413.0,0.12216872]
[1680358147236,0.0704,28414.0,28413.0,0.0699]
[1680358148335,0.0734,28414.0,28413.0,0.0699]
[1680358151939,0.0734,28414.0,28413.0,0.3706]
[1680358157446,0.003,28414.0,28413.0,0.42278944]
[1680358159543,0.003,28414.0,28413.0,0.49318944]
[1680358159741,0.0704,28419.0,28414.0,0.05]
[1680358159942,0.0704,28419.0,28417.0,0.0704]
[1680358160241,0.0704,28419.0,28418.0,0.05]
[1680358160838,0.0714,28419.0,28417.0,0.1234]
[1680358161444,0.0714,28419.0,28418.0,0.003]
[1680358161646,0.0714,28419.0,28418.0,0.053]
[1680358162050,0.0714,28419.0,28418.0,0.003]
[1680358162549,0.0714,28419.0,28417.0,0.0734]
[1680358163152,0.0704,28419.0,28417.0,0.0704]
[1680358163340,0.07124496,28419.0,28418.0,0.003]
[1680358163544,0.07024496,28419.0,28417.0,0.0704]
[1680358163746,0.07124496,28419.0,28417.0,0.0734]
[1680358164054,0.07024496,28419.0,28417.0,0.0704]
[1680358164351,0.07124496,28419.0,28418.0,0.003]
[1680358165346,0.07124496,28419.0,28417.0,0.0734]
[1680358165553,0.07124496,28419.0,28417.0,0.3741]
[1680358165748,0.07124496,28419.0,28418.0,0.003]
[1680358166154,0.07124496,28419.0,28417.0,0.3741]
[1680358166654,0.07124496,28419.0,28418.0,0.003]
[1680358167047,0.001,28419.0,28418.0,0.0727]
[1680358167846,0.05,28420.0,28418.0,0.0697]
[1680358168043,0.001,28419.0,28417.0,0.3741]
[1680358168249,0.001,28419.0,28418.0,0.0698]
[1680358168448,0.001,28419.0,28418.0,0.0728]
[1680358168845,0.001,28419.0,28418.0,0.0698]
[1680358169951,0.002,28419.0,28418.0,0.0728]
[1680358178565,0.072,28419.0,28418.0,0.003]
[1680358186576,0.05,28418.0,28413.0,0.05168944]
[1680358186874,0.0702,28414.0,28412.0,0.17580777]
[1680358187074,0.05,28413.0,28412.0,0.17580777]
[1680358187472,0.05,28413.0,28412.0,0.22927848]
[1680358187680,0.0702,28414.0,28412.0,0.22927848]
[1680358187870,0.0732,28414.0,28412.0,0.22927848]
[1680358188379,0.053,28413.0,28412.0,0.22927848]
[1680358188568,0.003,28413.0,28412.0,0.22927848]
[1680358189277,0.0732,28414.0,28412.0,0.22927848]
[1680358190271,0.0702,28414.0,28412.0,0.22927848]
[1680358190471,0.003,28413.0,28412.0,0.22927848]
[1680358190872,0.0732,28414.0,28412.0,0.22927848]
[1680358191373,0.003,28413.0,28412.0,0.22927848]
[1680358191678,0.0702,28414.0,28412.0,0.22927848]
[1680358191980,0.0732,28414.0,28412.0,0.22927848]
[1680358193179,0.003,28413.0,28412.0,0.22927848]
[1680358193381,0.0732,28414.0,28412.0,0.22927848]
[1680358194075,0.0732,28414.0,28413.0,0.3007]
[1680358194376,0.0732,28414.0,28413.0,0.3507]
[1680358194577,0.0732,28414.0,28413.0,0.3007]
[1680358195876,0.0732,28414.0,28413.0,0.3507]
[1680358196076,0.0732,28414.0,28413.0,0.3007]
[1680358196283,0.0732,28414.0,28413.0,0.3507]
[1680358196583,0.0732,28414.0,28413.0,0.3007]
[1680358196772,0.0732,28414.0,28413.0,0.3507]
[1680358196978,0.0732,28414.0,28413.0,0.3705]
[1680358196979,0.003,28414.0,28413.0,0.3705]
[1680358197982,0.003,28414.0,28413.0,0.0698]
[1680358198183,0.003,28414.0,28413.0,0.3705]
[1680358200785,0.003,28414.0,28413.0,0.0698]
[1680358200976,0.003,28414.0,28413.0,0.3705]
[1680358202778,0.003,28414.0,28413.0,0.0698]
[1680358206986,0.0734,28414.0,28413.0,0.0699]
[1680358207182,0.0734,28414.0,28413.0,0.1199]
[1680358207483,0.0734,28414.0,28413.0,0.0699]
[1680358215988,0.0734,28414.0,28413.0,0.1199]
[1680358216388,0.0734,28414.0,28413.0,0.22530777]
[1680358216795,0.0734,28414.0,28413.0,0.1199]
[1680358217095,0.003,28414.0,28413.0,0.22510777]
[1680358217286,0.003,28414.0,28413.0,0.0697]
[1680358217689,0.003,28414.0,28413.0,0.1197]
[1680358218091,0.003,28414.0,28413.0,0.0697]
[1680358220196,0.003,28414.0,28413.0,0.3704]
[1680358227003,0.003,28414.0,28413.0,0.0697]
[1680358227197,0.003,28414.0,28413.0,0.3704]
[1680358229005,0.003,28414.0,28413.0,0.47580777]
[1680358236302,0.003,28414.0,28413.0,0.3704]
[1680358236597,0.66719547,28423.0,28413.0,0.3704]
[1680358236598,0.19669547,28423.0,28414.0,0.05]
[1680358236811,0.0697,28419.0,28418.0,0.0702]
[1680358237007,0.0704,28421.0,28418.0,0.0704]
[1680358237203,0.0704,28421.0,28419.0,0.4211]
[1680358237508,0.0704,28421.0,28420.0,0.05]
[1680358238013,0.0704,28421.0,28419.0,0.4211]
[1680358238205,0.0864,28421.0,28419.0,0.4211]
[1680358238609,0.0734,28421.0,28419.0,0.4211]
[1680358238907,0.0734,28421.0,28419.0,0.3711]
[1680358239409,0.0734,28421.0,28419.0,0.0704]
[1680358239600,0.0734,28421.0,28419.0,0.3711]
[1680358246703,0.0734,28421.0,28419.0,0.0704]
[1680358246903,0.003,28421.0,28420.0,0.0698]
[1680358248307,0.053,28421.0,28420.0,0.0698]
[1680358249515,0.053,28421.0,28418.0,0.3007]
[1680358249516,0.1234,28421.0,28418.0,0.3007]
[1680358249815,0.0704,28419.0,28418.0,0.3007]
[1680358250808,0.0714,28419.0,28418.0,0.3007]
[1680358252310,0.0714,28419.0,28417.0,0.0704]
[1680358252615,0.1204,28418.0,28417.0,0.0704]
[1680358253007,0.0702,28417.0,28415.0,0.3007]
[1680358253315,0.12,28416.0,28415.0,0.3007]
[1680358254514,0.123,28416.0,28415.0,0.3007]
[1680358257113,0.123,28416.0,28413.0,0.3709]
[1680358257308,0.0704,28415.0,28413.0,0.3709]
[1680358257508,0.05,28414.0,28413.0,0.3709]
[1680358260103,0.053,28414.0,28413.0,0.3709]
[1680358264421,0.053,28414.0,28413.0,0.0702]
[1680358264716,0.053,28414.0,28413.0,0.3709]
[1680358265018,0.003,28414.0,28413.0,0.3709]
[1680358267109,0.003,28414.0,28413.0,0.3711]
[1680358268521,0.003,28414.0,28413.0,0.0704]
[1680358268713,0.003,28414.0,28413.0,0.3711]
[1680358277021,0.0734,28414.0,28413.0,0.3711]
[1680358284529,0.0734,28414.0,28413.0,0.0704]
[1680358285129,0.0734,28414.0,28413.0,0.3711]
[1680358287026,0.0727,28414.0,28413.0,0.3007]
[1680358287832,0.0727,28414.0,28413.0,0.30048651]
[1680358288030,0.0727,28414.0,28413.0,0.35048651]
[1680358288333,0.0727,28414.0,28413.0,0.30048651]
[1680358294032,0.0727,28414.0,28413.0,0.3007]
[1680358294239,0.0727,28414.0,28413.0,0.3507]
[1680358294439,0.0727,28414.0,28413.0,0.3007]
[1680358295834,0.0727,28414.0,28413.0,0.3507]
[1680358296041,0.0727,28414.0,28413.0,0.3007]
[1680358296643,0.0727,28414.0,28412.0,0.22938177]
[1680358296940,0.0727,28414.0,28413.0,0.3007]
[1680358297344,0.0727,28414.0,28413.0,0.40621106]
[1680358299944,0.0727,28414.0,28412.0,0.22938177]
[1680358300142,0.0704,28413.0,28411.0,0.10551106]
[1680358300341,0.0704,28412.0,28411.0,0.10551106]
[1680358301451,0.0734,28412.0,28411.0,0.10551106]
[1680358302145,0.0734,28412.0,28410.0,0.40621106]
[1680358302350,0.0704,28411.0,28410.0,0.40621106]
[1680358303651,0.0734,28411.0,28410.0,0.40621106]
[1680358307447,0.0734,28411.0,28410.0,0.3007]
[1680358315558,0.0734,28411.0,28409.0,0.47661106]
[1680358315751,0.0704,28410.0,28409.0,0.47661106]
[1680358316559,0.0704,28410.0,28409.0,0.3007]
[1680358317555,0.0734,28410.0,28409.0,0.3007]
[1680358322761,0.003,28410.0,28409.0,0.3007]
[1680358322963,0.003,28410.0,28409.0,0.47631106]
[1680358323156,0.05,28415.0,28410.0,0.05]
[1680358323354,0.05,28415.0,28414.0,0.3007]
[1680358323355,0.12,28415.0,28414.0,0.3007]
[1680358323565,0.1906,28415.0,28414.0,0.3007]
[1680358323965,0.1926,28415.0,28414.0,0.3007]
[1680358324365,0.1906,28415.0,28414.0,0.3007]
[1680358324661,0.1926,28415.0,28414.0,0.3037]
[1680358327066,0.1224,28415.0,28414.0,0.3037]
[1680358333967,0.0724,28415.0,28414.0,0.3037]
[1680358334763,0.0724,28415.0,28414.0,0.003]
[1680358335061,0.0724,28415.0,28414.0,0.3037]
[1680358335563,0.0714,28415.0,28414.0,0.3037]
[1680358341966,0.0714,28415.0,28414.0,0.6044]
[1680358344785,0.0714,28415.0,28414.0,0.003]
[1680358344973,0.0714,28415.0,28414.0,0.3037]
[1680358346170,0.071,28415.0,28414.0,0.3037]
[1680358350784,0.071,28415.0,28414.0,0.003]
[1680358350983,0.071,28415.0,28414.0,0.3037]
[1680358351187,0.0714,28415.0,28414.0,0.3037]
[1680358351578,0.0714,28415.0,28414.0,0.003]
[1680358356885,0.1413,28415.0,28414.0,0.003]
[1680358359793,0.05,28414.0,28409.0,0.3007]
[1680358360094,0.07,28410.0,28409.0,0.3007]
[1680358361890,0.073,28410.0,28409.0,0.3007]
[1680358374405,0.1433,28410.0,28409.0,0.3007]
[1680358375198,0.0733,28410.0,28409.0,0.3007]
[1680358382508,0.0733,28410.0,28408.0,0.3007]
[1680358382814,0.0704,28409.0,28408.0,0.3007]
[1680358383709,0.0724,28409.0,28408.0,0.3007]
[1680358383903,0.0724,28409.0,28407.0,0.05]
[1680358384111,0.002,28409.0,28408.0,0.3007]
[1680358384408,0.0724,28409.0,28408.0,0.3007]
[1680358395209,0.0724,28409.0,28406.0,0.17581106]
[1680358395413,0.002,28409.0,28408.0,0.3007]
[1680358395610,0.0724,28409.0,28408.0,0.3007]
[1680358406923,0.1428,28409.0,28408.0,0.3007]
[1680358410529,0.1428,28409.0,28408.0,0.300503]
[1680358411328,0.19581189,28409.0,28408.0,0.300503]
[1680358413235,0.19581189,28409.0,28405.0,0.10551106]
[1680358413534,0.12531189,28409.0,28408.0,0.3007]
[1680358413733,0.19541189,28409.0,28408.0,0.3007]
[1680358424142,0.19541189,28409.0,28404.0,0.15945705]
[1680358424343,0.12541189,28409.0,28408.0,0.3007]
[1680358424543,0.19571189,28409.0,28408.0,0.3007]
[1680358426145,0.0723,28409.0,28408.0,0.3007]
[1680358431844,0.0723,28409.0,28408.0,0.3507]
[1680358432050,0.0723,28409.0,28408.0,0.3007]
[1680358432949,0.0723,28409.0,28406.0,0.0698]
[1680358433144,0.0702,28407.0,28406.0,0.0698]
[1680358433351,0.0702,28407.0,28406.0,0.6712]
[1680358434439,0.0732,28407.0,28406.0,0.6712]
[1680358436952,0.0734,28407.0,28406.0,0.6014]
[1680358441753,0.0734,28407.0,28405.0,0.17581106]
[1680358441958,0.0697,28406.0,28405.0,0.17581106]
[1680358442156,0.0697,28406.0,28405.0,0.77721106]
[1680358442854,0.0727,28406.0,28405.0,0.77721106]
[1680358443850,0.0727,28406.0,28405.0,0.6717]
[1680358444857,0.0727,28406.0,28405.0,0.0703]
[1680358445052,0.0727,28406.0,28405.0,0.6717]
[1680358446959,0.073,28406.0,28405.0,0.6014]
[1680358458971,0.073,28406.0,28405.0,0.60127195]
[1680358468582,0.073,28406.0,28405.0,0.6014]
[1680358487097,0.1434,28406.0,28405.0,0.6014]
[1680358494197,0.2843,28406.0,28405.0,0.6014]
[1680358496904,0.2842,28406.0,28405.0,0.6014]
[1680358497206,0.2845,28406.0,28405.0,0.6014]
[1680358501399,0.1429,28406.0,28405.0,0.6014]
[1680358509312,0.1429,28406.0,28402.0,0.05375615]
[1680358509515,0.0704,28403.0,28401.0,0.0698]
[1680358509811,0.0704,28403.0,28402.0,0.6014]
[1680358510511,0.0734,28403.0,28402.0,0.6014]
[1680358510715,0.0704,28403.0,28402.0,0.6014]
[1680358511012,0.0701,28409.0,28402.0,0.6711]
[1680358511208,0.0701,28409.0,28408.0,0.6014]
[1680358511411,0.1408,28409.0,28408.0,0.6014]
[1680358512511,0.0724,28409.0,28408.0,0.6014]
[1680358512909,0.0724,28409.0,28408.0,0.6044]
[1680358517016,0.002,28409.0,28408.0,0.6743]
[1680358521924,0.002,28409.0,28408.0,0.0729]
[1680358522126,0.002,28409.0,28408.0,0.6743]
[1680358526929,0.072,28409.0,28408.0,0.6745]
[1680358529731,0.1426,28409.0,28408.0,0.6044]
[1680358533532,0.1426,28409.0,28408.0,0.3037]
[1680358535830,0.1426,28409.0,28408.0,0.003]
[1680358536032,0.1426,28409.0,28408.0,0.3037]
[1680358538836,0.1426,28409.0,28408.0,0.003]
[1680358539041,0.1426,28409.0,28408.0,0.3037]
[1680358540755,0.1426,28409.0,28408.0,0.003]
[1680358540958,0.1426,28409.0,28408.0,0.3037]
[1680358548558,0.1426,28409.0,28408.0,0.003]
[1680358548759,0.1426,28409.0,28408.0,0.3037]
[1680358551054,0.1426,28409.0,28408.0,0.003]
[1680358551255,0.1426,28409.0,28408.0,0.3037]
[1680358556862,0.1926,28409.0,28408.0,0.3037]
[1680358566971,0.1923,28409.0,28408.0,0.3037]
[1680358576882,0.3331,28409.0,28408.0,0.3037]
[1680358582390,0.3327,28409.0,28408.0,0.3037]
[1680358583486,0.2827,28409.0,28408.0,0.3037]
[1680358583790,0.3327,28409.0,28408.0,0.3037]
[1680358587094,0.3329,28409.0,28408.0,0.3037]
[1680358587688,0.3329,28409.0,28408.0,0.003]
[1680358587889,0.3329,28409.0,28408.0,0.3037]
[1680358590794,0.3329,28409.0,28405.0,0.3007]
[1680358590795,0.6336,28409.0,28405.0,0.3007]
[1680358591002,0.6336,28409.0,28402.0,0.3007]
[1680358591003,0.5818,28406.0,28402.0,0.3007]
[1680358591300,0.1407,28403.0,28402.0,0.3007]